fUSD/lending_fUSD_20250413
["ID","MTS","AMOUNT","RATE_DAILY","PERIOD"]
[357921698,1744563044584,-150.0,0.00019749,2]
[357921699,1744563044594,-150.0,0.00019752,2]
[357921700,1744563044603,-150.0,0.00019754,2]
[357921701,1744563044612,-150.0,0.00019755,2]
[357921702,1744563044622,-150.0,0.00019762,2]
[357921703,1744563044631,-150.0,0.00019772,2]
[357921704,1744563044641,-150.0,0.00019773,2]
[357921705,1744563044651,-150.0,0.00019776,2]
[357921706,1744563044660,-150.0,0.00019776,2]
[357921707,1744563044670,-150.0,0.00019787,2]
[357921708,1744563044679,-150.0,0.00019787,2]
[357921709,1744563044689,-150.0,0.00019787,2]
[357921710,1744563044700,-150.0,0.00019788,2]
[357921711,1744563044712,-150.0,0.00019793,2]
[357921712,1744563044722,-150.0,0.00019797,2]
[357921713,1744563044732,-150.0,0.00019801,2]
[357921714,1744563044743,-150.0,0.00019802,2]
[357921715,1744563044752,-150.0,0.00019803,2]
[357921716,1744563044761,-150.0,0.00019803,2]
[357921717,1744563044773,-150.0,0.00019808,2]
[357921718,1744563044784,-150.0,0.0001981,2]
[357921719,1744563044795,-150.0,0.0001981,2]
[357921720,1744563044805,-150.0,0.00019815,2]
[357921721,1744563044814,-150.0,0.00019817,2]
[357921722,1744563044823,-150.0,0.00019817,2]
[357921723,1744563044832,-150.0,0.00019817,2]
[357921724,1744563044842,-150.0,0.00019821,2]
[357921725,1744563044851,-150.0,0.00019827,2]
[357921726,1744563044860,-150.0,0.00019828,2]
[357921727,1744563044870,-150.0,0.00019833,2]
[357921728,1744563044879,-150.0,0.00019835,2]
[357921729,1744563044889,-150.0,0.0001984,2]
[357921730,1744563044899,-150.0,0.00019843,2]
[357921731,1744563044909,-150.0,0.00019845,2]
[357921732,1744563044919,-150.0,0.0001985,2]
[357921733,1744563044928,-150.0,0.00019851,2]
[357921734,1744563044939,-150.0,0.00019851,2]
[357921735,1744563044949,-150.0,0.00019855,2]
[357921736,1744563044959,-150.0,0.00019865,2]
[357921737,1744563044968,-150.0,0.00019867,2]
[357921738,1744563044978,-150.0,0.00019867,2]
[357921739,1744563044987,-150.0,0.00019867,2]
[357921740,1744563044997,-150.0,0.00019868,2]
[357921741,1744563045007,-150.0,0.00019872,2]
[357921742,1744563045016,-150.0,0.00019874,2]
[357921743,1744563045027,-150.0,0.00019877,2]
[357921744,1744563045037,-150.0,0.00019882,2]
[357921745,1744563045047,-150.0,0.00019882,2]
[357921746,1744563045056,-150.0,0.00019884,2]
[357921747,1744563045066,-150.0,0.00019885,2]
[357921748,1744563045076,-150.0,0.00019891,2]
[357921749,1744563045085,-150.0,0.00019894,2]
[357921750,1744563045095,-150.0,0.00019895,2]
[357921751,1744563045104,-150.0,0.00019895,2]
[357921752,1744563045115,-150.0,0.00019897,2]
[357921753,1744563045125,-150.0,0.00019901,2]
[357921754,1744563045134,-150.0,0.00019902,2]
[357921755,1744563045143,-150.0,0.00019905,2]
[357921756,1744563045153,-150.0,0.00019905,2]
[357921757,1744563045162,-150.0,0.00019908,2]
[357921758,1744563045172,-150.0,0.0001991,2]
[357921759,1744563045181,-150.0,0.00019911,2]
[357921760,1744563045192,-150.0,0.00019922,2]
[357921761,1744563045202,-150.0,0.00019923,2]
[357921762,1744563045211,-150.0,0.00019928,2]
[357921763,1744563045221,-150.0,0.00019929,2]
[357921764,1744563045231,-150.0,0.0001993,2]
[357921765,1744563045241,-150.0,0.00019931,2]
[357921766,1744563045250,-150.0,0.00019939,2]
[357921767,1744563045260,-150.0,0.00019947,2]
[357921768,1744563045270,-150.0,0.00019949,2]
[357921769,1744563045279,-150.0,0.00019957,2]
[357921770,1744563045288,-150.0,0.0001996,2]
[357921771,1744563045298,-150.0,0.00019963,2]
[357921772,1744563045307,-150.0,0.00019968,2]
[357921773,1744563045316,-150.0,0.00019971,2]
[357921774,1744563045326,-150.0,0.00019971,2]
[357921775,1744563045336,-44.32525003,0.00019972,2]
[357921776,1744563045345,-150.0,0.00019973,2]
[357921777,1744563045355,-150.0,0.00019973,2]
[357921778,1744563045364,-150.0,0.0001998,2]
[357921779,1744563045373,-150.0,0.00019983,2]
[357921780,1744563045383,-150.0,0.00019983,2]
[357921781,1744563045392,-150.0,0.00019983,2]
[357921782,1744563045402,-150.0,0.00019987,2]
[357921783,1744563045411,-150.0,0.00019988,2]
[357921784,1744563045421,-150.0,0.00019988,2]
[357921785,1744563045430,-150.0,0.00019988,2]
[357921786,1744563045440,-150.0,0.00019992,2]
[357921787,1744563045450,-56.67474997,0.0002,2]
[357921789,1744563045839,-150.0,0.0001974,2]
[357921790,1744563045849,-150.0,0.00019749,2]
[357921791,1744563045859,-150.0,0.00019756,2]
[357921792,1744563045869,-150.0,0.0001976,2]
[357921793,1744563045879,-150.0,0.00019761,2]
[357921794,1744563045888,-150.0,0.00019763,2]
[357921795,1744563045897,-150.0,0.00019765,2]
[357921796,1744563045907,-150.0,0.00019768,2]
[357921797,1744563045917,-150.0,0.00019769,2]
[357921798,1744563045926,-150.0,0.00019774,2]
[357921799,1744563045936,-150.0,0.00019785,2]
[357921800,1744563045946,-150.0,0.00019785,2]
[357921801,1744563045955,-150.0,0.0001979,2]
[357921802,1744563045965,-150.0,0.0001979,2]
[357921803,1744563045975,-150.0,0.00019793,2]
[357921804,1744563045984,-150.0,0.00019801,2]
[357921805,1744563045993,-150.0,0.00019819,2]
[357921806,1744563046002,-150.0,0.0001982,2]
[357921807,1744563046012,-150.0,0.00019822,2]
[357921808,1744563046022,-150.0,0.00019822,2]
[357921809,1744563046031,-150.0,0.00019824,2]
[357921810,1744563046040,-150.0,0.00019826,2]
[357921811,1744563046050,-150.0,0.00019827,2]
[357921812,1744563046059,-150.0,0.00019844,2]
[357921813,1744563046068,-150.0,0.00019848,2]
[357921814,1744563046078,-150.0,0.00019848,2]
[357921815,1744563046087,-150.0,0.0001985,2]
[357921816,1744563046095,-150.0,0.00019855,2]
[357921817,1744563046105,-150.0,0.00019856,2]
[357921818,1744563046114,-150.0,0.00019857,2]
[357921819,1744563046122,-150.0,0.00019871,2]
[357921820,1744563046131,-150.0,0.00019876,2]
[357921821,1744563046139,-150.0,0.00019879,2]
[357921822,1744563046148,-11.94686325,0.00019897,2]
[357921823,1744563046210,-150.0,0.00019729,2]
[357921825,1744563046219,-121.80444007,0.00019767,2]
[357921826,1744563046252,-150.0,0.0001975,2]
[357921827,1744563046262,-28.19555993,0.00019767,2]
[357921829,1744563046271,-150.0,0.00019788,2]
[357921830,1744563046280,-52.18003953,0.00019871,2]
[357921832,1744563046292,-97.81996047,0.00019871,2]
[357921833,1744563046301,-150.0,0.00019873,2]
[357921834,1744563046310,-138.05313675,0.00019897,2]
[357921835,1744563046320,-10.45466278,0.00019898,2]
[357921837,1744563390727,150.0,0.00028634,120]
[357921838,1744563516483,742.77,0.00016954,2]
[357921841,1744564232150,-352.753765,0.00018555,2]
[357921842,1744564232161,-250.0,0.00018602,2]
[357921843,1744564232171,-200.0,0.00018649,2]
[357921844,1744564232180,-200.0,0.00018731,2]
[357921845,1744564232188,-158.14756455,0.00018738,2]
[357921846,1744564232198,-250.0,0.00018742,2]
[357921847,1744564232206,-166.21,0.00018744,2]
[357921848,1744564232215,-1438.05,0.00018801,2]
[357921849,1744564232224,-250.0,0.00018838,2]
[357921850,1744564232233,-300.0,0.00018842,2]
[357921851,1744564232242,-14126.9905854,0.00018843,2]
[357921852,1744564232250,-11148.61004435,0.00018857,2]
[357921853,1744564232261,-739.489561,0.00018857,2]
[357921854,1744564232272,-1050.0,0.00018857,2]
[357921855,1744564232283,-1577.36276331,0.00018857,2]
[357921957,1744564238099,-515.55170183,0.00018857,2]
[357921958,1744564238313,-1782.044,0.00018857,2]
[357921959,1744564238348,-2000.0,0.00018857,2]
[357921960,1744564238363,-5086.94192951,0.00018857,2]
[357921961,1744564238375,-1000.0,0.00018881,2]
[357921962,1744564238387,-642.8577849,0.00018892,2]
[357921963,1744564238410,-500.0,0.00018892,2]
[357921970,1744564240197,-4004.49299997,0.00018892,2]
[357921971,1744564240883,-1564.8919647,0.00018892,2]
[357921972,1744564240894,-421.8382502,0.00018892,2]
[357921973,1744564240906,-714.54469998,0.00018892,2]
[357921974,1744564240917,-1500.0,0.00018892,2]
[357921975,1744564240935,-2531.94,0.00018892,2]
[357921976,1744564240947,-4559.43430025,0.00018892,2]
[357921977,1744564240956,-331.01,0.00018894,2]
[357921978,1744564240966,-170.5823653,0.00019178,2]
[357921979,1744564240974,-500.0,0.00019178,2]
[357921980,1744564240984,-1593.41,0.00019178,2]
[357921981,1744564240993,-664.31933447,0.00019178,2]
[357921986,1744564244408,-167.33066553,0.00019178,2]
[357921987,1744564244417,-97198.58064687,0.00019196,2]
[357921988,1744564244426,-742.77,0.00019218,2]
[357921989,1744564244435,-500.0,0.00019452,2]
[357921990,1744564244444,-1593.41,0.00019452,2]
[357921991,1744564244453,-831.65,0.00019452,2]
[357921992,1744564244462,-1055.29004158,0.000196,2]
[357921993,1744564244472,-2750.07674924,0.00019621,2]
[357921994,1744564244482,-150.0,0.00019726,2]
[357921995,1744564244491,-500.0,0.00019726,2]
[357921996,1744564244500,-1593.41,0.00019726,2]
[357921997,1744564244510,-831.65,0.00019726,2]
[357921998,1744564244519,-150.0,0.00019728,2]
[357921999,1744564244528,-150.0,0.00019728,2]
[357922000,1744564244537,-150.0,0.00019728,2]
[357922001,1744564244546,-150.0,0.00019736,2]
[357922002,1744564244555,-150.0,0.00019737,2]
[357922003,1744564244564,-150.0,0.00019742,2]
[357922004,1744564244573,-150.0,0.00019745,2]
[357922005,1744564244583,-14658.85785858,0.00019745,2]
[357922006,1744564244593,-150.0,0.00019747,2]
[357922007,1744564244602,-150.0,0.00019747,2]
[357922008,1744564244611,-150.0,0.00019748,2]
[357922009,1744564244621,-1000.0,0.00019749,2]
[357922010,1744564244630,-2500.0,0.0001975,2]
[357922011,1744564244639,-1000.0,0.00019751,2]
[357922012,1744564244648,-150.0,0.00019754,2]
[357922013,1744564244658,-150.0,0.00019756,2]
[357922014,1744564244667,-150.0,0.00019757,2]
[357922015,1744564244676,-150.0,0.00019758,2]
[357922016,1744564244685,-1000.0,0.00019758,2]
[357922017,1744564244695,-150.0,0.00019761,2]
[357922018,1744564244704,-150.0,0.00019762,2]
[357922019,1744564244713,-150.0,0.00019762,2]
[357922020,1744564244723,-150.0,0.00019768,2]
[357922021,1744564244732,-150.0,0.00019769,2]
[357922022,1744564244741,-150.0,0.0001977,2]
[357922023,1744564244750,-150.0,0.0001977,2]
[357922024,1744564244760,-150.0,0.00019771,2]
[357922025,1744564244769,-150.0,0.00019772,2]
[357922026,1744564244778,-150.0,0.00019774,2]
[357922027,1744564244788,-150.0,0.00019777,2]
[357922028,1744564244797,-150.0,0.00019778,2]
[357922029,1744564244807,-150.0,0.00019779,2]
[357922030,1744564244815,-150.0,0.00019779,2]
[357922031,1744564244824,-150.0,0.00019781,2]
[357922032,1744564244834,-150.0,0.0001979,2]
[357922033,1744564244843,-150.0,0.0001979,2]
[357922034,1744564244852,-150.0,0.00019792,2]
[357922035,1744564244862,-150.0,0.00019793,2]
[357922036,1744564244871,-150.0,0.00019796,2]
[357922037,1744564244880,-150.0,0.00019797,2]
[357922038,1744564244889,-150.0,0.00019797,2]
[357922039,1744564244899,-1000.0,0.000198,2]
[357922040,1744564244908,-150.0,0.00019802,2]
[357922041,1744564244918,-150.0,0.00019806,2]
[357922042,1744564244927,-150.0,0.00019807,2]
[357922043,1744564244936,-196.08103344,0.00019811,2]
[357922044,1744564244945,-150.0,0.00019812,2]
[357922045,1744564244955,-150.0,0.00019813,2]
[357922046,1744564244964,-150.0,0.00019817,2]
[357922047,1744564244973,-150.0,0.0001982,2]
[357922048,1744564244982,-161.42640002,0.00019824,2]
[357922049,1744564244993,-150.0,0.00019825,2]
[357922050,1744564245002,-150.0,0.00019825,2]
[357922051,1744564245012,-7427.07542621,0.00019825,2]
[357922052,1744564245021,-150.0,0.00019829,2]
[357922053,1744564245031,-150.0,0.00019833,2]
[357922054,1744564245039,-150.0,0.00019836,2]
[357922055,1744564245048,-150.0,0.00019838,2]
[357922056,1744564245058,-150.0,0.00019838,2]
[357922057,1744564245067,-150.0,0.00019845,2]
[357922058,1744564245078,-150.0,0.0001985,2]
[357922059,1744564245089,-150.0,0.00019852,2]
[357922060,1744564245098,-150.0,0.00019852,2]
[357922061,1744564245107,-150.0,0.0001986,2]
[357922062,1744564245116,-150.0,0.00019861,2]
[357922063,1744564245126,-150.0,0.00019862,2]
[357922064,1744564245135,-150.0,0.00019877,2]
[357922065,1744564245145,-150.0,0.00019881,2]
[357922066,1744564245155,-150.0,0.00019885,2]
[357922067,1744564245164,-150.0,0.00019887,2]
[357922068,1744564245174,-907.29459655,0.00019887,2]
[357922069,1744564245183,-1000.0,0.00019888,2]
[357922070,1744564245192,-150.0,0.0001989,2]
[357922071,1744564245399,-150.0,0.00019892,2]
[357922072,1744564245409,-150.0,0.00019892,2]
[357922073,1744564245418,-151.0,0.00019892,2]
[357922074,1744564245427,-172.69117,0.00019892,2]
[357922075,1744564245437,-151.0,0.00019892,2]
[357922076,1744564245447,-151.0,0.00019892,2]
[357922077,1744564245457,-151.0,0.00019892,2]
[357922078,1744564245466,-151.0,0.00019892,2]
[357922079,1744564245475,-151.0,0.00019892,2]
[357922080,1744564245485,-556.211515,0.00019892,2]
[357922081,1744564245495,-205.218055,0.00019892,2]
[357922082,1744564245504,-556.211515,0.00019892,2]
[357922083,1744564245514,-151.0,0.00019892,2]
[357922084,1744564245523,-205.218055,0.00019892,2]
[357922085,1744564245532,-151.0,0.00019892,2]
[357922086,1744564245541,-297.195817,0.00019892,2]
[357922087,1744564245551,-153.803534,0.00019892,2]
[357922088,1744564245560,-152.434385,0.00019892,2]
[357922089,1744564245569,-151.0,0.00019892,2]
[357922090,1744564245579,-151.0,0.00019892,2]
[357922091,1744564245589,-151.0,0.00019892,2]
[357922092,1744564245599,-151.0,0.00019892,2]
[357922093,1744564245608,-154.676403,0.00019892,2]
[357922094,1744564245617,-151.0,0.00019892,2]
[357922095,1744564245627,-151.0,0.00019892,2]
[357922096,1744564245636,-151.0,0.00019892,2]
[357922097,1744564245645,-151.0,0.00019892,2]
[357922098,1744564245654,-151.0,0.00019892,2]
[357922099,1744564245664,-151.0,0.00019892,2]
[357922100,1744564245673,-151.0,0.00019892,2]
[357922101,1744564245683,-160.145396,0.00019892,2]
[357922102,1744564245692,-151.0,0.00019892,2]
[357922103,1744564245702,-201.121023,0.00019892,2]
[357922104,1744564245711,-151.0,0.00019892,2]
[357922105,1744564245720,-201.121023,0.00019892,2]
[357922106,1744564245730,-151.0,0.00019892,2]
[357922107,1744564245739,-150.0,0.00019893,2]
[357922108,1744564245748,-139.54533722,0.00019898,2]
[357922109,1744564245762,-687.0367,0.000199,2]
[357922110,1744564245771,-715.6942,0.000199,2]
[357922111,1744564245781,-534.5893,0.000199,2]
[357922112,1744564245790,-199.893006,0.000199,2]
[357922113,1744564245800,-151.0,0.000199,2]
[357922114,1744564245810,-151.0,0.000199,2]
[357922115,1744564245820,-153.995762,0.000199,2]
[357922116,1744564245829,-151.0,0.000199,2]
[357922117,1744564245839,-160.327987,0.000199,2]
[357922119,1744564245848,-151.0,0.000199,2]
[357922120,1744564245858,-151.0,0.000199,2]
[357922121,1744564245868,-151.0,0.000199,2]
[357922122,1744564245878,-153.329073,0.000199,2]
[357922123,1744564245888,-151.0,0.000199,2]
[357922125,1744564245898,-151.0,0.000199,2]
[357922126,1744564245908,-151.0,0.000199,2]
[357922128,1744564245918,-151.0,0.000199,2]
[357922130,1744564245928,-278.187801,0.000199,2]
[357922131,1744564245938,-151.0,0.000199,2]
[357922132,1744564245947,-151.0,0.000199,2]
[357922133,1744564245957,-152.722741,0.000199,2]
[357922134,1744564245967,-151.0,0.000199,2]
[357922135,1744564245977,-151.0,0.000199,2]
[357922136,1744564245987,-151.0,0.000199,2]
[357922137,1744564245997,-153.010415,0.000199,2]
[357922138,1744564246007,-151.0,0.000199,2]
[357922139,1744564246018,-151.0,0.000199,2]
[357922140,1744564246028,-151.83277,0.000199,2]
[357922141,1744564246038,-151.0,0.000199,2]
[357922142,1744564246047,-154.90713,0.000199,2]
[357922143,1744564246057,-151.0,0.000199,2]
[357922144,1744564246066,-151.0,0.000199,2]
[357922145,1744564246078,-9395.3477288,0.000199,2]
[357922146,1744564246089,-153.662604,0.000199,2]
[357922147,1744564246098,-151.0,0.000199,2]
[357922148,1744564246107,-151.0,0.000199,2]
[357922149,1744564246118,-556.211515,0.000199,2]
[357922150,1744564246127,-556.211515,0.000199,2]
[357922151,1744564246137,-153.154134,0.000199,2]
[357922152,1744564246147,-151.0,0.000199,2]
[357922153,1744564246157,-151.0,0.000199,2]
[357922154,1744564246167,-151.0,0.000199,2]
[357922155,1744564246176,-151.0,0.000199,2]
[357922156,1744564246186,-151.0,0.000199,2]
[357922157,1744564246195,-151.0,0.000199,2]
[357922158,1744564246206,-151.0,0.000199,2]
[357922159,1744564246215,-201.121023,0.000199,2]
[357922160,1744564246225,-151.0,0.000199,2]
[357922161,1744564246235,-201.121023,0.000199,2]
[357922162,1744564246244,-1294.0756278,0.000199,2]
[357922163,1744564246254,-150.0,0.00019901,2]
[357922164,1744564246264,-150.0,0.00019901,2]
[357922165,1744564246273,-150.0,0.00019903,2]
[357922166,1744564246283,-151.472062,0.00019903,2]
[357922167,1744564246293,-151.0,0.00019903,2]
[357922168,1744564246303,-150.0,0.00019905,2]
[357922169,1744564246313,-150.0,0.00019905,2]
[357922170,1744564246323,-150.0,0.00019907,2]
[357922171,1744564246333,-150.0,0.0001991,2]
[357922172,1744564246343,-150.0,0.00019911,2]
[357922173,1744564246354,-1000.0,0.00019916,2]
[357922174,1744564246363,-1295.345,0.00019918,2]
[357922175,1744564246374,-216.77049,0.00019918,2]
[357922176,1744564246384,-153.565611,0.00019918,2]
[357922177,1744564246393,-156.126305,0.00019918,2]
[357922178,1744564246402,-150.0,0.00019922,2]
[357922179,1744564246412,-150.0,0.00019926,2]
[357922180,1744564246422,-150.0,0.00019927,2]
[357922181,1744564246432,-150.0,0.00019928,2]
[357922182,1744564246442,-150.0,0.00019929,2]
[357922183,1744564246451,-150.0,0.0001993,2]
[357922184,1744564246462,-150.0,0.0001993,2]
[357922185,1744564246472,-150.0,0.00019932,2]
[357922186,1744564246481,-150.0,0.00019934,2]
[357922187,1744564246492,-150.0,0.00019939,2]
[357922188,1744564246502,-150.0,0.00019941,2]
[357922189,1744564246512,-150.0,0.00019943,2]
[357922190,1744564246522,-151.0,0.00019946,2]
[357922191,1744564246531,-151.0,0.00019946,2]
[357922192,1744564246541,-151.0,0.00019946,2]
[357922193,1744564246551,-232.69416326,0.00019948,2]
[357922194,1744564246561,-150.0,0.00019949,2]
[357922195,1744564246571,-150.0,0.00019949,2]
[357922196,1744564246580,-150.0,0.00019953,2]
[357922197,1744564246590,-150.0,0.00019953,2]
[357922198,1744564246599,-150.0,0.00019954,2]
[357922199,1744564246608,-150.0,0.00019956,2]
[357922200,1744564246619,-1000.0,0.00019956,2]
[357922201,1744564246630,-167.646907,0.00019956,2]
[357922202,1744564246639,-151.0,0.00019956,2]
[357922203,1744564246649,-151.0,0.00019956,2]
[357922204,1744564246659,-205.218055,0.00019956,2]
[357922205,1744564246668,-205.218055,0.00019956,2]
[357922206,1744564246678,-150.0,0.00019957,2]
[357922208,1744564246688,-150.0,0.00019957,2]
[357922209,1744564246697,-150.0,0.0001996,2]
[357922210,1744564246707,-150.0,0.0001996,2]
[357922211,1744564246716,-150.0,0.00019962,2]
[357922212,1744564246726,-150.0,0.00019965,2]
[357922213,1744564246735,-150.0,0.00019966,2]
[357922214,1744564246745,-150.0,0.00019972,2]
[357922215,1744564246755,-500.0,0.00019973,2]
[357922216,1744564246764,-150.0,0.00019982,2]
[357922217,1744564246773,-50607.78156481,0.00019985,2]
[357922218,1744564246783,-151.0,0.00019986,2]
[357922219,1744564246792,-151.0,0.00019986,2]
[357922220,1744564246802,-151.0,0.00019986,2]
[357922221,1744564246812,-151.0,0.00019986,2]
[357922222,1744564246821,-155.884401,0.00019986,2]
[357922223,1744564246831,-151.0,0.00019986,2]
[357922224,1744564246840,-151.0,0.00019986,2]
[357922225,1744564246851,-155.855058,0.00019986,2]
[357922226,1744564246860,-151.0,0.00019986,2]
[357922227,1744564246871,-202.8899,0.00019986,2]
[357922228,1744564246882,-152.21271,0.00019986,2]
[357922229,1744564246893,-151.0,0.00019986,2]
[357922230,1744564246903,-151.0,0.00019986,2]
[357922231,1744564246912,-151.0,0.00019986,2]
[357922232,1744564246922,-151.0,0.00019986,2]
[357922233,1744564246931,-151.0,0.00019986,2]
[357922234,1744564246941,-240.426302,0.00019986,2]
[357922235,1744564246952,-151.0,0.00019986,2]
[357922236,1744564246962,-151.0,0.00019986,2]
[357922237,1744564246972,-556.211515,0.00019986,2]
[357922238,1744564246981,-205.218055,0.00019986,2]
[357922239,1744564246992,-556.211515,0.00019986,2]
[357922240,1744564247002,-205.218055,0.00019986,2]
[357922241,1744564247012,-11995.8778158,0.00019986,2]
[357922242,1744564247021,-151.0,0.00019986,2]
[357922243,1744564247031,-278.691009,0.00019986,2]
[357922244,1744564247040,-168.100423,0.00019986,2]
[357922245,1744564247049,-739.699678,0.00019986,2]
[357922246,1744564247058,-151.0,0.00019986,2]
[357922247,1744564247067,-151.0,0.00019986,2]
[357922248,1744564247081,-151.0,0.00019986,2]
[357922249,1744564247093,-151.0,0.00019986,2]
[357922250,1744564247103,-152.820535,0.00019986,2]
[357922251,1744564247119,-2107.6298476,0.00019986,2]
[357922252,1744564247129,-201.121023,0.00019986,2]
[357922253,1744564247139,-201.121023,0.00019986,2]
[357922254,1744564247149,-151.0,0.00019986,2]
[357922255,1744564247159,-151.0,0.00019986,2]
[357922256,1744564247171,-201.121023,0.00019986,2]
[357922257,1744564247180,-201.121023,0.00019986,2]
[357922258,1744564247191,-150.0,0.00019988,2]
[357922259,1744564247201,-150.0,0.00019989,2]
[357922260,1744564247210,-150.0,0.0001999,2]
[357922261,1744564247220,-150.0,0.00019999,2]
[357922262,1744564247230,-151.0,0.00019999,2]
[357922263,1744564247240,-150.0,0.00019999,2]
[357922264,1744564247253,-151.0,0.00019999,2]
[357922265,1744564247265,-151.0,0.00019999,2]
[357922266,1744564247278,-151.0,0.00019999,2]
[357922267,1744564247292,-151.0,0.00019999,2]
[357922268,1744564247305,-151.0,0.00019999,2]
[357922269,1744564247317,-556.211515,0.00019999,2]
[357922270,1744564247327,-205.218055,0.00019999,2]
[357922271,1744564247338,-556.211515,0.00019999,2]
[357922272,1744564247350,-205.218055,0.00019999,2]
[357922273,1744564247362,-151.0,0.00019999,2]
[357922274,1744564247374,-151.0,0.00019999,2]
[357922275,1744564247385,-163381.48157059,0.0002,2]
[357922276,1744564248019,-150.0,0.00019721,2]
[357922277,1744564248030,-150.0,0.00019723,2]
[357922278,1744564248041,-150.0,0.00019732,2]
[357922279,1744564248053,-150.0,0.00019739,2]
[357922280,1744564248064,-150.0,0.00019741,2]
[357922281,1744564248076,-150.0,0.00019744,2]
[357922282,1744564248089,-150.0,0.00019748,2]
[357922283,1744564248100,-150.0,0.00019749,2]
[357922284,1744564248110,-150.0,0.00019763,2]
[357922285,1744564248121,-45.24253641,0.00019764,2]
[357922286,1744564248153,-150.0,0.00019724,2]
[357922287,1744564248164,-104.75746359,0.00019764,2]
[357922288,1744564248175,-150.0,0.00019765,2]
[357922289,1744564248186,-150.0,0.00019781,2]
[357922290,1744564248197,-150.0,0.00019783,2]
[357922291,1744564248208,-150.0,0.00019784,2]
[357922292,1744564248219,-150.0,0.00019786,2]
[357922293,1744564248230,-150.0,0.00019787,2]
[357922294,1744564248240,-150.0,0.00019788,2]
[357922295,1744564248251,-150.0,0.00019798,2]
[357922296,1744564248261,-150.0,0.00019805,2]
[357922297,1744564248272,-150.0,0.00019807,2]
[357922298,1744564248283,-150.0,0.00019809,2]
[357922299,1744564248295,-150.0,0.00019823,2]
[357922300,1744564248306,-150.0,0.00019829,2]
[357922301,1744564248318,-150.0,0.00019837,2]
[357922302,1744564248329,-150.0,0.0001984,2]
[357922303,1744564248340,-150.0,0.00019844,2]
[357922304,1744564248352,-150.0,0.00019845,2]
[357922305,1744564248363,-150.0,0.00019849,2]
[357922306,1744564248374,-150.0,0.0001985,2]
[357922307,1744564248385,-150.0,0.00019866,2]
[357922308,1744564248396,-150.0,0.0001987,2]
[357922309,1744564248407,-150.0,0.00019881,2]
[357922310,1744564248418,-150.0,0.00019886,2]
[357922311,1744564248429,-150.0,0.00019887,2]
[357922312,1744564248439,-150.0,0.00019898,2]
[357922313,1744564248451,-150.0,0.00019901,2]
[357922314,1744564248463,-150.0,0.00019909,2]
[357922315,1744564248474,-150.0,0.00019911,2]
[357922316,1744564248485,-150.0,0.00019911,2]
[357922317,1744564248497,-150.0,0.00019914,2]
[357922318,1744564248510,-150.0,0.00019914,2]
[357922319,1744564248522,-150.0,0.00019916,2]
[357922320,1744564248533,-150.0,0.00019932,2]